bitfinex-derivatives/quotes_SOLF0:USTF0_20220108
["timestamp","ask_amount","ask_price","bid_price","bid_amount"]
[1641665521307,27.66479,133.57,133.5,4.0]
[1641665521507,27.66479,133.57,133.5,27.66479]
[1641665521707,5.98983115,133.56,133.4,1.872]
[1641665521907,27.66479,133.57,133.45,4.0]
[1641665522107,27.66479,133.57,133.4,1.872]
[1641665522310,5.99161731,133.52,133.4,1.872]
[1641665522508,7.49484729,133.5,133.39,69.2731]
[1641665522709,5.9933819,133.49,133.39,69.2731]
[1641665523009,5.99422414,133.47,133.39,69.2731]
[1641665523208,11.49765698,133.45,133.32,157.80810374]
[1641665523409,4.0,133.38,133.32,15.57080374]
[1641665523711,7.19655893,133.4,133.29,4.0]
[1641665523910,33.66121611,133.42,133.31,4.0]
[1641665524110,27.66479,133.42,133.28,5.23559374]
[1641665524309,27.66479,133.44,133.34,4.0]
[1641665524509,27.66479,133.44,133.32,4.0]
[1641665524711,27.66479,133.44,133.31,7.49709488]
[1641665524712,5.99578647,133.43,133.31,7.49709488]
[1641665524911,5.99578647,133.43,133.3,4.0]
[1641665524912,7.49962502,133.41,133.29,1.874]
[1641665525111,7.49962502,133.41,133.28,7.10959374]
[1641665525311,7.49962502,133.41,133.27,68.8729]
[1641665525510,27.66479,133.32,133.27,68.8729]
[1641665525711,35.16976204,133.32,133.26,27.66479]
[1641665526010,11.50638042,133.29,133.18,69.8595]
[1641665526210,7.50976269,133.23,133.19,34.55947851]
[1641665526411,6.0051567,133.22,133.19,34.55947851]
[1641665526612,13.5154834,133.22,133.19,34.23317851]
[1641665526810,6.0051567,133.22,133.19,34.23317851]
[1641665527212,6.00607959,133.2,133.19,34.23317851]
[1641665527612,61.33565959,133.2,133.15,62.06867661]
[1641665527812,61.33565959,133.2,133.1,11.31439403]
[1641665528015,20.87686526,133.2,133.1,11.31439403]
[1641665528213,20.87686526,133.2,133.11,4.0]
[1641665528413,7.50807118,133.26,133.12,4.0]
[1641665528612,20.0,133.27,133.09,72.605]
[1641665528812,4.0,133.24,133.09,72.605]
[1641665529013,4.0,133.22,133.09,72.605]
[1641665529212,7.20321165,133.28,133.17,4.0]
[1641665529613,27.66479,133.33,133.24,27.66479]
[1641665530114,27.66479,133.33,133.12,4.0]
[1641665530313,27.66479,133.33,133.16,4.0]
[1641665531014,4.0,133.27,133.13,4.0]
[1641665531512,4.0,133.31,133.15,4.0]
[1641665531713,11.2006828,133.33,133.16,5.875]
[1641665531915,7.50638042,133.29,133.14,9.38138042]
[1641665532114,20.0,133.28,133.14,7.50638042]
[1641665532313,4.0,133.29,133.13,27.66479]
[1641665532512,4.0,133.27,133.13,27.66479]
[1641665532716,7.20173377,133.31,133.19,7.50384572]
[1641665532717,14.7072691,133.31,133.19,7.50384572]
[1641665532913,8.0,133.32,133.2,7.5030012]
[1641665533115,8.0,133.32,133.18,4.0]
[1641665533314,10.00049916,133.33,133.17,4.0]
[1641665533514,33.66763397,133.28,133.17,27.66479]
[1641665533714,6.00284397,133.28,133.17,27.66479]
[1641665533915,14.70378578,133.34,133.2,4.0]
[1641665534115,7.19994006,133.34,133.19,4.0]
[1641665534314,7.19994006,133.34,133.17,27.66479]
[1641665534514,7.19994006,133.34,133.2,7.50328269]
[1641665534715,7.19750699,133.38,133.26,7.49990625]
[1641665534915,7.19750699,133.38,133.3,7.49765698]
[1641665535117,29.99962501,133.44,133.3,7.49765698]
[1641665535316,5.99659961,133.41,133.34,7.49540906]
[1641665535514,27.66479,133.47,133.38,27.66479]
[1641665535915,10.3561256,133.49,133.39,4.0]
[1641665536115,11.49178167,133.55,133.4,11.49175907]
[1641665536315,7.49344324,133.52,133.39,1.873]
[1641665536515,7.49288176,133.53,133.38,27.66479]
[1641665536716,5.99276509,133.5,133.38,27.66479]
[1641665537115,7.49316249,133.53,133.38,27.66479]
[1641665537316,5.99181934,133.52,133.38,37.03095249]
[1641665537615,9.99181934,133.52,133.42,27.66479]
[1641665537816,5.9936187,133.48,133.38,27.66479]
[1641665538016,5.9936187,133.48,133.39,7.49260106]
[1641665538215,5.9936187,133.48,133.38,27.66479]
[1641665538415,4.0,133.47,133.36,7.4940048]
[1641665538615,7.5001875,133.4,133.3,1.873]
[1641665538815,5.99773266,133.39,133.23,1.874]
[1641665539017,7.50215687,133.37,133.23,4.0]
[1641665539417,7.50131273,133.38,133.23,11.50131273]
[1641665539618,27.66479,133.34,133.27,27.66479]
[1641665539817,7.49878145,133.43,133.31,4.0]
[1641665540018,4.0,133.53,133.31,4.0]
[1641665540217,7.49709488,133.46,133.35,7.49456644]
[1641665540421,7.49709488,133.46,133.35,11.49456644]
[1641665540619,7.49709488,133.46,133.42,4.0]
[1641665540918,2.26e-05,133.56,133.38,4.0]
[1641665541118,20.0000226,133.56,133.39,1.873]
[1641665541317,20.0000226,133.56,133.25,47.66479]
[1641665541318,4.0,133.49,133.35,1.873]
[1641665541517,55.32958,133.36,133.28,1.873]
[1641665541717,27.66479,133.36,133.25,27.66479]
[1641665541919,27.66479,133.36,133.26,1.875]
[1641665542116,27.66479,133.36,133.25,27.66479]
[1641665542317,75.6147,133.49,133.28,4.0]
[1641665542518,7.19141738,133.5,133.37,4.0]
[1641665542718,7.19141738,133.5,133.39,7.49288176]
[1641665542917,2.26e-05,133.53,133.39,11.49288176]
[1641665543118,2.26e-05,133.53,133.37,1.873]
[1641665543317,4.0,133.51,133.37,7.4940048]
[1641665543518,31.66479,133.49,133.36,27.66479]
[1641665543717,7.49681385,133.47,133.36,27.66479]
[1641665543918,27.66479,133.49,133.36,35.15935644]
[1641665544118,27.66479,133.49,133.39,7.49316249]
[1641665544319,27.66479,133.49,133.36,37.03263729]
[1641665544818,18.6908848,133.46,133.32,7.49709488]
[1641665545020,7.19350888,133.46,133.29,73.0078]
[1641665545219,7.19350888,133.46,133.34,7.49597092]
[1641665545420,5.99477724,133.45,133.32,9.37109488]
[1641665545622,27.66479,133.4,133.33,27.66479]
[1641665545824,27.66479,133.42,133.33,27.66479]
[1641665546021,5.99477724,133.45,133.35,7.49512817]
[1641665546422,5.99477724,133.45,133.34,1.874]
[1641665546623,5.99666663,133.41,133.31,7.49737592]
[1641665546824,7.50159409,133.39,133.25,1.874]
[1641665547122,5.99797715,133.38,133.27,7.49990625]
[1641665547723,27.66479,133.4,133.3,27.66479]
[1641665548128,35.16554008,133.4,133.29,73.0078]
[1641665548324,39.16554008,133.4,133.29,73.0078]
[1641665548525,39.16554008,133.4,133.23,1.874]
[1641665548526,7.50412727,133.34,133.23,1.874]
[1641665548729,6.00020843,133.33,133.21,69.4759]
[1641665548927,6.00020843,133.33,133.2,75.01016419]
[1641665549529,6.00020843,133.33,133.19,1.875]
[1641665549530,6.00109025,133.31,133.19,1.875]
[1641665549728,27.66479,133.21,133.18,41.64272319]
[1641665549929,27.66479,133.21,133.16,7.50609871]
[1641665550130,27.66479,133.23,133.16,7.50609871]
[1641665550732,35.1751167,133.23,133.14,41.64272319]
[1641665551231,41.17986083,133.23,133.12,27.66479]
[1641665551431,13.51507083,133.23,133.12,27.66479]
[1641665551631,7.50807118,133.27,133.22,55.32958]
[1641665551833,7.50919877,133.25,133.1,7.50919877]
[1641665552032,7.50863493,133.26,133.11,7.50863493]
[1641665552231,7.50835304,133.27,133.12,7.50835304]
[1641665552633,30.03453972,133.29,133.12,4.0]
[1641665552634,7.5103267,133.23,133.12,4.0]
[1641665552833,7.5103267,133.23,133.09,69.4808]
[1641665553437,7.51145497,133.21,133.13,2.96771992]
[1641665553634,35.17596287,133.22,133.13,2.96771992]
[1641665554038,39.17596287,133.22,133.13,2.96771992]
[1641665554234,7.51145497,133.21,133.13,2.96771992]
[1641665555135,27.66479,133.22,133.13,2.96771992]
[1641665555536,7.51201923,133.2,133.1,27.66479]
[1641665555738,7.51201923,133.2,133.12,27.66479]
[1641665555936,11.51201923,133.2,133.1,27.66479]
[1641665556137,4.0,133.19,133.1,27.66479]
[1641665556337,4.0,133.21,133.07,15.77011784]
[1641665556541,11.51371253,133.17,133.07,15.77011784]
[1641665556740,4.0,133.14,133.07,15.77011784]
[1641665556940,4.0,133.14,133.05,41.64272319]
[1641665557141,6.00931498,133.13,133.02,91.03961266]
[1641665557341,6.00931498,133.13,133.02,91.03933037]
[1641665557540,6.00931498,133.13,133.02,83.52561784]
[1641665557741,6.00931498,133.13,133.02,15.77011784]
[1641665558244,7.51089079,133.22,133.02,8.77011784]
[1641665558544,6.00528335,133.22,133.03,2.9601356]
[1641665558741,6.00528335,133.22,133.06,4.0]
[1641665558941,6.00528335,133.22,133.09,4.0]
[1641665559141,6.00528335,133.22,133.08,4.0]
[1641665559342,6.00528335,133.22,133.11,11.50948072]
[1641665559542,6.00528335,133.22,133.06,4.0]
[1641665559843,6.00528335,133.22,133.14,27.66479]
[1641665560444,6.00528335,133.22,133.16,4.0]
[1641665560643,2.26e-05,133.26,133.16,4.0]
[1641665560945,2.26e-05,133.3,133.21,7.50356419]
[1641665561142,2.26e-05,133.3,133.16,4.0]
[1641665561344,2.26e-05,133.3,133.19,11.50497204]
[1641665561542,2.26e-05,133.3,133.19,4.0]
[1641665561742,2.26e-05,133.3,133.28,27.66479]
[1641665562143,35.16835419,133.36,133.28,27.66479]
[1641665562541,20.0000226,133.37,133.28,27.66479]
[1641665563243,2.26e-05,133.36,133.28,27.66479]
[1641665563445,2.26e-05,133.36,133.29,4.0]
[1641665563642,2.26e-05,133.36,133.32,27.66479]
[1641665564245,35.16584399,133.41,133.32,27.66479]
[1641665564444,7.50243829,133.38,133.28,27.66479]
[1641665564645,47.6648126,133.41,133.25,7.50131273]
[1641665564845,7.50243829,133.38,133.24,4.0]
[1641665565045,8.0,133.4,133.24,4.0]
[1641665565247,7.50356419,133.36,133.21,7.50356419]
[1641665565646,27.66479,133.34,133.19,27.66479]
[1641665565846,35.16976204,133.34,133.19,27.66479]
[1641665566048,7.50581701,133.32,133.19,27.66479]
[1641665566546,7.50581701,133.32,133.19,31.66479]
[1641665566746,7.50581701,133.32,133.19,27.66479]
[1641665566948,41.16976364,133.34,133.19,35.16976204]
[1641665567146,20.0,133.33,133.19,35.16976204]
[1641665567347,41.16976364,133.34,133.2,4.0]
[1641665567546,8.0,133.31,133.19,35.16976204]
[1641665567746,8.0,133.31,133.23,4.0]
[1641665567947,27.66479,133.32,133.24,4.0]
[1641665568148,41.16976364,133.34,133.27,4.0]
[1641665568348,13.50497364,133.34,133.19,35.16976204]
[1641665568548,6.0000016,133.34,133.26,7.50075008]
[1641665568747,6.0000016,133.34,133.27,4.0]
[1641665568947,6.0000016,133.34,133.22,7.5030012]
[1641665569348,6.0000016,133.34,133.24,4.0]
[1641665569548,6.0000016,133.34,133.26,7.50103139]
[1641665569749,27.66479,133.38,133.3,27.66479]
[1641665570347,5.99807856,133.38,133.3,27.66479]
[1641665570947,5.99807856,133.38,133.28,4.0]
[1641665571348,5.99967449,133.35,133.27,4.0]
[1641665571748,5.99967449,133.35,133.26,27.66479]
[1641665571948,13.20193525,133.32,133.22,7.5030012]
[1641665572149,6.00471651,133.23,133.18,4.0]
[1641665572349,6.00471651,133.23,133.19,4.0]
[1641665572752,6.00471651,133.23,133.19,11.50497204]
[1641665572953,6.00471651,133.23,133.16,4.0]
[1641665573151,6.00508179,133.23,133.14,7.50750751]
[1641665573351,6.00685861,133.19,133.1,71.891]
[1641665573552,6.00685861,133.19,133.13,7.50807118]
[1641665573754,27.66479,133.23,133.17,4.0]
[1641665573951,27.66479,133.23,133.19,4.0]
[1641665574150,7.20368004,133.27,133.17,7.50609871]
[1641665574351,7.20368004,133.27,133.19,4.0]
[1641665574552,6.00498096,133.23,133.17,4.0]
[1641665574752,6.00498096,133.23,133.15,7.50694392]
[1641665574951,6.00498096,133.23,133.11,5.875]
[1641665575151,6.00498096,133.23,133.14,7.50778933]
[1641665575754,6.00625765,133.2,133.12,31.66479]
[1641665575954,6.00625765,133.2,133.12,27.66479]
[1641665576556,6.00321177,133.27,133.19,11.50356419]
[1641665576753,62.06867661,133.39,133.26,4.0]
[1641665576958,62.06867661,133.39,133.29,7.49934381]
[1641665577157,62.06867661,133.39,133.27,4.0]
[1641665577356,9.64093363,133.35,133.34,4.0]
[1641665577755,14.80196151,133.36,133.34,31.66479]
[1641665577956,97.8308725,133.41,133.35,15.49568998]
[1641665578158,83.7108725,133.41,133.4,7.49288176]
[1641665578355,83.7108725,133.41,133.4,11.49288176]
[1641665578356,73.6508725,133.41,133.4,11.49288176]
[1641665578756,14.05155837,133.44,133.4,4.0]
[1641665578958,29.97601918,133.56,133.43,4.0]
[1641665579156,7.49288176,133.55,133.44,11.4906367]
[1641665579356,7.49288176,133.55,133.44,4.0]
[1641665579357,21.29967422,133.55,133.44,4.0]
[1641665579757,27.66479,133.54,133.46,27.66479]
[1641665580157,29.93950902,133.54,133.46,27.66479]
[1641665580357,29.93950902,133.54,133.44,27.66479]
[1641665580557,29.93950902,133.54,133.44,4.0]
[1641665580762,21.29967422,133.53,133.5,4.0]
[1641665580958,21.29967422,133.53,133.47,4.0]
[1641665581157,21.29967422,133.53,133.45,4.0]
[1641665581362,21.29967422,133.53,133.45,7.49035617]
[1641665581559,21.29967422,133.53,133.45,11.49035617]
[1641665581760,27.66479,133.54,133.5,4.0]
[1641665581960,27.66479,133.54,133.45,11.49035617]
[1641665582164,5.98812243,133.6,133.52,4.0]
[1641665582461,5.98812243,133.6,133.44,27.66479]
[1641665582462,43.69888919,133.62,133.56,4.0]
[1641665582660,43.69888919,133.62,133.54,4.0]
[1641665582861,43.69888919,133.62,133.55,4.0]
[1641665583061,7.1826807,133.66,133.5,31.81448168]
[1641665583062,21.28657947,133.65,133.58,4.0]
[1641665583261,21.28657947,133.65,133.59,7.4822297]
[1641665583462,21.28657947,133.65,133.58,11.48278958]
[1641665583662,21.28657947,133.65,133.63,4.0]
[1641665583862,1e-08,133.65,133.64,70.80873186]
[1641665584564,43.69888919,133.74,133.64,70.80873186]
[1641665584765,43.69888919,133.81,133.71,11.47551768]
[1641665584962,43.69888919,133.81,133.7,7.47635602]
[1641665585163,43.69888919,133.81,133.77,4.0]
[1641665585363,43.69888919,133.81,133.72,7.47495889]
[1641665585563,5.97728044,133.85,133.76,4.0]
[1641665585764,27.66479,133.83,133.76,4.0]
[1641665585963,35.14226411,133.83,133.73,4.0]
[1641665586164,27.66479,133.83,133.69,29.53279]
[1641665586368,27.66479,133.83,133.73,4.0]
[1641665586564,27.66479,133.85,133.76,7.47300377]
[1641665586867,7.47160789,133.93,133.8,4.0]
[1641665587065,89.0,133.92,133.86,4.0]
[1641665587365,7.16733057,133.95,133.84,4.0]
[1641665587766,40.23129787,133.97,133.86,27.66479]
[1641665587965,27.66479,134.0,133.94,4.0]
[1641665588465,40.23129787,134.01,133.99,4.0]
[1641665588666,40.23129787,134.01,134.0,4.0]
[1641665588865,15.39226625,134.04,134.0,4.0]
[1641665589068,15.39226625,134.04,133.98,4.0]
[1641665589266,15.39226625,134.04,134.03,7.4573996]
[1641665589471,8.36967279,134.04,134.03,15.45767768]
[1641665589667,8.36967279,134.04,134.03,4.0]
[1641665589869,8.36967279,134.04,134.03,39.12052159]
[1641665590067,8.36967279,134.04,134.03,43.12052159]
[1641665590269,0.00967279,134.16,134.03,43.12052159]
[1641665590469,0.00967279,134.16,134.03,30.19467382]
[1641665590671,0.00967279,134.16,134.03,13.31973159]
[1641665590870,0.00967279,134.16,134.08,4.0]
[1641665591071,0.00967279,134.16,134.09,4.0]
[1641665591273,0.00967279,134.16,134.08,4.0]
[1641665591472,61.56906501,134.23,134.08,4.0]
[1641665591673,125.04875374,134.31,134.15,4.0]
[1641665591974,5.9564872,134.31,134.15,31.66479]
[1641665592172,5.9564872,134.31,134.15,27.66479]
[1641665592672,49.86774215,134.35,134.22,4.0]
[1641665592872,5.95386993,134.37,134.22,4.0]
[1641665593073,7.44851216,134.35,134.23,4.0]
[1641665593272,7.4479574,134.36,134.23,4.0]
[1641665593473,7.4479574,134.36,134.24,4.0]
[1641665593673,7.4479574,134.36,134.21,7.4479574]
[1641665593871,27.66479,134.29,134.24,4.0]
[1641665594372,3.78403781,134.31,134.24,0.21596219]
[1641665594574,3.78403781,134.35,134.2,29.52579]
[1641665594773,10.88,134.4,134.18,1.861]
[1641665594975,3.78403781,134.22,134.12,1.861]
[1641665595172,3.78403781,134.18,134.1,1.863]
[1641665595374,3.78403781,134.17,134.03,35.68703818]
[1641665595672,3.78403781,134.19,134.09,4.0]
[1641665595876,3.78403781,134.2,134.11,27.88075219]
[1641665596072,3.78403781,134.21,134.11,27.88075219]
[1641665596272,5.95972286,134.24,134.13,7.45212013]
[1641665596473,13.40752753,134.31,134.16,7.45073203]
[1641665596673,7.45100961,134.3,134.16,0.21596219]
[1641665596874,7.45100961,134.3,134.15,9.31300961]
[1641665597074,3.78403781,134.25,134.15,0.21596219]
[1641665597273,3.78403781,134.23,134.15,7.45128721]
[1641665597473,3.78403781,134.23,134.13,0.21596219]
[1641665597675,3.78403781,134.16,134.1,1.863]
[1641665597875,27.66479,134.12,134.08,0.21596219]
[1641665598075,27.66479,134.12,134.04,0.21596219]
[1641665598278,27.66479,134.12,134.02,27.66479]
[1641665598478,3.78403781,134.08,133.99,1.864]
[1641665598676,27.66479,134.12,133.99,1.864]
[1641665598877,3.78403781,134.06,133.96,1.864]
[1641665599078,3.78403781,134.09,133.93,0.21596219]
[1641665599276,3.78403781,134.07,133.93,0.21596219]
[1641665599580,5.96787395,134.06,133.89,0.21596219]
[1641665599776,5.96997796,134.01,133.94,27.66479]
[1641665599976,5.96997796,134.01,133.98,0.21596219]
[1641665600275,3.78403781,134.12,134.0,7.45851203]
[1641665600475,5.96459529,134.13,134.01,7.45906836]
[1641665600676,5.96372038,134.15,134.0,7.45934656]
[1641665600876,3.78403781,134.11,133.99,0.21596219]
[1641665601075,3.78403781,134.08,133.96,30.05557428]
[1641665601277,5.96591084,134.1,133.94,1.865]
[1641665601475,3.78403781,134.03,133.93,68.5226]
[1641665601676,3.78403781,133.97,133.88,1.865]
[1641665601875,3.78403781,133.95,133.86,27.66479]
[1641665602077,3.78403781,133.95,133.84,1.866]
[1641665602277,33.63652281,133.97,133.83,0.21596219]
[1641665602477,33.63652281,133.97,133.85,0.21596219]
[1641665602677,27.66479,133.99,133.86,1.866]
[1641665602877,27.66479,133.99,133.88,7.46630828]
[1641665603077,27.66479,133.99,133.88,0.21596219]
[1641665603277,27.66479,133.99,133.88,4.0]
[1641665603482,27.66479,133.99,133.93,0.21596219]
[1641665603678,3.78403781,134.04,133.94,0.21596219]
[1641665603879,27.66479,134.0,133.95,7.46212969]
[1641665604084,3.78403781,134.07,133.95,7.46212969]
[1641665604283,3.78403781,134.06,133.95,7.46212969]
[1641665604583,3.78403781,134.02,133.94,1.866]
[1641665604781,3.78403781,134.01,133.91,27.66479]
[1641665604983,5.96719777,134.07,133.91,27.66479]
[1641665604984,7.16160703,134.05,133.91,27.66479]
[1641665605181,7.16160703,134.05,133.93,7.46352204]
[1641665605381,3.78403781,134.0,133.92,1.865]
[1641665605581,3.78403781,133.94,133.84,1.866]
[1641665605781,3.78403781,133.91,133.8,27.66479]
[1641665605981,27.66479,133.93,133.8,27.66479]
[1641665606181,3.78403781,133.9,133.8,27.66479]
[1641665606381,9.75843077,133.91,133.78,27.66479]
[1641665606781,5.97576277,133.88,133.79,0.21596219]
[1641665607185,5.97576277,133.88,133.74,5.867]
[1641665607382,5.97406842,133.92,133.83,0.21596219]
[1641665607582,5.97406842,133.92,133.79,1.867]
[1641665607881,5.97406842,133.92,133.76,1.867]
[1641665607882,27.66479,133.88,133.76,1.867]
[1641665608083,3.78403781,133.81,133.74,1.868]
[1641665608284,3.78403781,133.8,133.7,1.868]
[1641665608583,9.76439254,133.78,133.66,7.47831289]
[1641665608784,5.98035473,133.78,133.66,7.47831289]
[1641665608983,37.0864523,133.84,133.66,7.47831289]
[1641665608984,14.65011575,133.84,133.69,11.47691502]
[1641665609183,7.17320073,133.84,133.74,0.21596219]
[1641665609383,7.17320073,133.84,133.73,0.21596219]
[1641665609583,7.17320073,133.84,133.68,1.869]
[1641665609785,3.78403781,133.78,133.68,27.66479]
[1641665609983,3.78403781,133.78,133.67,1.869]
[1641665609984,5.98015589,133.78,133.66,27.66479]
[1641665610285,3.78403781,133.77,133.64,7.47971128]
[1641665610485,9.7641937,133.78,133.64,7.47971128]
[1641665610684,5.98316407,133.71,133.61,1.869]
[1641665610886,5.98316407,133.71,133.64,0.21596219]
[1641665611085,7.17684618,133.77,133.64,0.21596219]
[1641665611387,7.17684618,133.77,133.65,7.69483438]
[1641665611585,8.0,133.76,133.7,7.47635602]
[1641665611786,35.66479,133.76,133.7,7.47635602]
[1641665612185,27.16621016,133.76,133.71,0.21596219]
[1641665612386,27.16621016,133.76,133.7,7.47635602]
[1641665612585,27.16621016,133.76,133.67,7.47775368]
[1641665612787,27.16621016,133.76,133.69,7.69287721]
[1641665612990,27.66479,133.79,133.69,7.47691502]
[1641665613188,3.78403781,133.78,133.67,7.47775368]
[1641665613388,7.48139004,133.76,133.65,7.47887219]
[1641665613588,5.98061292,133.77,133.61,0.21596219]
[1641665613790,27.66479,133.66,133.61,0.21596219]
[1641665613988,27.66479,133.66,133.63,0.21596219]
[1641665614189,27.66479,133.66,133.61,0.21596219]
[1641665614590,14.91380252,133.66,133.59,0.21596219]
[1641665615090,14.91380252,133.66,133.57,35.36410174]
[1641665615290,14.91380252,133.66,133.58,0.21596219]
[1641665616190,5.98431003,133.69,133.58,0.21596219]
[1641665616191,5.98431003,133.69,133.65,0.21596219]
[1641665616391,7.17548412,133.79,133.68,0.21596219]
[1641665616590,7.17548412,133.79,133.72,0.21596219]
[1641665616790,7.47775368,133.82,133.7,0.21596219]
[1641665616990,3.78403781,133.84,133.7,0.21596219]
[1641665617192,3.78403781,133.84,133.66,4.0]
[1641665617391,8.60695493,133.85,133.58,1.869]
[1641665617392,7.47719456,133.83,133.7,0.21596219]
[1641665617594,7.47803328,133.82,133.72,0.21596219]
[1641665617791,7.47803328,133.82,133.67,7.47803328]
[1641665617792,7.47803328,133.82,133.76,0.21596219]
[1641665617992,27.66479,133.82,133.73,7.69064171]
[1641665618192,27.66479,133.82,133.75,0.21596219]
[1641665618593,5.97886951,133.81,133.72,0.21596219]
[1641665618794,3.78403781,133.78,133.69,7.47663551]
[1641665618994,9.76464987,133.77,133.67,27.66479]
[1641665619194,9.76464987,133.77,133.66,0.21596219]
[1641665619596,5.98061206,133.77,133.64,7.47943156]
[1641665619996,5.98061206,133.77,133.73,0.21596219]
[1641665620203,13.1469697,133.88,133.76,0.21596219]
[1641665620500,5.97584743,133.88,133.78,0.21596219]
[1641665621099,5.97584743,133.88,133.74,5.868]
[1641665621298,5.97584743,133.88,133.78,11.47188703]
[1641665621600,5.97584743,133.88,133.78,7.47188703]
[1641665621797,10.32064855,133.95,133.83,0.21596219]
[1641665621998,27.66479,133.92,133.81,35.13472352]
[1641665622199,27.66479,133.92,133.86,0.21596219]
[1641665622397,27.66479,133.94,133.87,4.0]
[1641665622598,27.66479,133.94,133.93,0.21596219]
[1641665622999,5.9704942,134.0,133.92,0.21596219]
[1641665623199,9.75453201,134.0,133.87,1.866]
[1641665623398,3.78403781,133.95,133.83,0.21596219]
[1641665623599,3.78403781,133.9,133.82,1.866]
[1641665623900,27.66479,133.85,133.78,0.21596219]
[1641665624099,5.97391765,133.92,133.84,7.68310675]
[1641665624300,7.16245883,134.04,133.91,0.21596219]
[1641665624499,7.46686578,134.02,133.88,7.46602957]
[1641665624701,7.46686578,134.02,133.89,1.866]
[1641665625002,3.78403781,134.02,133.9,0.21596219]
[1641665625303,5.97173619,133.97,133.89,0.21596219]
[1641665625501,5.97173619,133.97,133.91,0.21596219]
[1641665625702,7.16245883,134.04,133.96,0.21596219]
[1641665625902,43.21748065,134.08,134.01,0.21596219]
[1641665626103,15.55269065,134.09,134.03,7.45712155]
[1641665626302,15.55269065,134.09,134.06,7.45600954]
[1641665626501,15.55269065,134.09,134.05,0.21596219]
[1641665626502,15.55269065,134.09,134.07,0.21596219]
[1641665626702,39.65788641,134.12,134.08,7.45517576]
[1641665626901,61.56906501,134.16,134.11,7.66947093]
[1641665627102,60.96906501,134.16,134.11,7.45350874]
[1641665627303,60.96906501,134.16,134.13,0.21596219]
[1641665627506,60.96906501,134.16,134.08,33.81403496]
[1641665627507,60.96906501,134.16,134.12,0.21596219]
[1641665627703,125.04875374,134.24,134.07,0.21596219]
[1641665627704,3.78403781,134.17,134.07,0.21596219]
[1641665627908,27.66479,134.12,134.05,27.66479]
[1641665628206,7.15195206,134.23,134.11,24.21596219]
[1641665628404,7.45267551,134.27,134.11,7.45267551]
[1641665628604,7.45267551,134.27,134.13,0.21596219]
[1641665628805,3.78403781,134.28,134.15,7.45100961]
[1641665629011,60.96906501,134.29,134.18,7.44934446]
[1641665629205,3.78403781,134.2,134.1,9.31606433]
[1641665629405,3.78403781,134.15,134.07,7.45573159]
[1641665629606,3.78403781,134.13,134.04,7.45712155]
[1641665629805,7.45823389,134.17,134.04,7.45712155]
[1641665630006,27.66479,134.16,134.05,27.88075219]
[1641665630208,27.66479,134.16,134.06,0.21596219]
[1641665630405,7.45823389,134.17,134.05,27.66479]
[1641665630608,11.24477568,134.13,134.0,1.864]
[1641665630806,11.2458891,134.11,133.99,27.66479]
[1641665631009,7.46185129,134.11,133.99,27.66479]
[1641665631305,3.78403781,134.12,133.99,27.66479]
[1641665631505,8.0,134.15,134.07,0.21596219]
[1641665631705,8.0,134.15,134.06,0.21596219]
[1641665631905,8.0,134.15,134.06,27.88075219]
[1641665632105,33.62711718,134.18,134.06,27.66479]
[1641665632305,33.62711718,134.18,134.07,7.45545366]
[1641665632706,3.78403781,134.13,134.06,27.66479]
[1641665633007,3.78403781,134.13,134.04,27.88075219]
[1641665633008,3.78403781,134.1,134.04,27.66479]
[1641665633208,5.96597872,134.1,134.0,7.67558697]
[1641665633406,5.96597872,134.1,134.02,0.21596219]
[1641665633607,5.96597872,134.1,134.0,7.45962478]
[1641665634107,27.66479,134.08,134.0,7.67558697]
[1641665634306,27.66479,134.08,134.0,7.45962478]
[1641665634506,27.66479,134.08,134.04,0.21596219]
[1641665634706,7.15638839,134.15,134.03,0.21596219]
[1641665634906,7.15638839,134.15,134.09,0.21596219]
[1641665635106,8.58473903,134.2,134.09,0.21596219]
[1641665635308,19.82534235,134.2,134.09,0.21596219]
[1641665635509,16.04130454,134.2,134.09,0.21596219]
[1641665635711,3.78403781,134.11,134.04,1.863]
[1641665635910,27.66479,134.13,134.03,0.21596219]
[1641665636111,27.66479,134.13,134.04,7.67308374]
[1641665636310,27.66479,134.13,134.04,7.45712155]
[1641665636510,27.66479,134.13,134.02,1.864]
[1641665636710,3.78403781,134.11,133.97,29.83849912]